[Event "*** Titled Tuesday Blitz"]
[Site "Chess.com"]
[Date "2019.03.05"]
[Round "6"]
[White "JoachimMouhamad"]
[Black "calemcc"]
[Result "1-0"]
[WhiteElo "2320"]
[BlackElo "2230"]
[TimeControl "180+2"]
[EndTime "14:24:30 PST"]
[Termination "JoachimMouhamad won by checkmate"]

1. e4 {[%clk 0:03:01.7]} 1... e6 {[%clk 0:02:58.9]} 2. d4 {[%clk 0:03:02.7]}
2... d5 {[%clk 0:02:56]} 3. Nc3 {[%clk 0:03:03.9]} 3... Nf6 {[%clk 0:02:56.5]}
4. e5 {[%clk 0:03:04.9]} 4... Nfd7 {[%clk 0:02:58.2]} 5. f4 {[%clk 0:03:06.5]}
5... c5 {[%clk 0:03:00.1]} 6. Nf3 {[%clk 0:03:08.1]} 6... a6 {[%clk 0:03:02]} 7.
Be3 {[%clk 0:03:09.3]} 7... Nc6 {[%clk 0:03:03.9]} 8. Qd2 {[%clk 0:03:10.7]}
8... cxd4 {[%clk 0:03:05.8]} 9. Nxd4 {[%clk 0:03:11.6]} 9... Bc5 {[%clk
0:03:07.7]} 10. O-O-O {[%clk 0:02:27.6]} 10... O-O {[%clk 0:03:06.4]} 11. h4
{[%clk 0:02:21.5]} 11... Nxd4 {[%clk 0:03:06.2]} 12. Bxd4 {[%clk 0:02:22.3]}
12... b5 {[%clk 0:03:08.1]} 13. Bxc5 {[%clk 0:01:47.7]} 13... Nxc5 {[%clk
0:03:07]} 14. Bd3 {[%clk 0:01:48.3]} 14... b4 {[%clk 0:03:04.9]} 15. Ne2 {[%clk
0:01:48.9]} 15... a5 {[%clk 0:03:05.8]} 16. Nd4 {[%clk 0:01:42.7]} 16... Qc7
{[%clk 0:02:54.1]} 17. Kb1 {[%clk 0:01:38.8]} 17... Ba6 {[%clk 0:02:54.2]} 18.
Rhe1 {[%clk 0:01:19.8]} 18... b3 {[%clk 0:02:39.4]} 19. f5 {[%clk 0:01:14.8]}
19... bxa2+ {[%clk 0:02:08.9]} 20. Ka1 {[%clk 0:01:16]} 20... Bxd3 {[%clk
0:02:07.9]} 21. cxd3 {[%clk 0:01:17.3]} 21... Rfb8 {[%clk 0:02:04.3]} 22. f6
{[%clk 0:01:16.9]} 22... Qb6 {[%clk 0:02:02.7]} 23. Rc1 {[%clk 0:00:41]} 23...
Nxd3 {[%clk 0:02:00.4]} 24. Re2 {[%clk 0:00:31.8]} 24... Nxc1 {[%clk 0:01:57.8]}
25. Qg5 {[%clk 0:00:31]} 25... Kf8 {[%clk 0:01:21.4]} 26. Qxg7+ {[%clk
0:00:30.4]} 26... Ke8 {[%clk 0:01:22.1]} 27. Qg8+ {[%clk 0:00:31.9]} 27... Kd7
{[%clk 0:01:22.7]} 28. Qxf7+ {[%clk 0:00:33.6]} 28... Kd8 {[%clk 0:01:10.9]} 29.
Qe7+ {[%clk 0:00:33.2]} 29... Kc8 {[%clk 0:01:08.1]} 30. Rc2+ {[%clk 0:00:34.6]}
30... Qc6 {[%clk 0:01:02.8]} 31. Rxc6# {[%clk 0:00:35.1]} 1-0

[Event "*** Titled Tuesday Blitz"]
[Site "Chess.com"]
[Date "2019.03.05"]
[Round "6"]
[White "MITerryble"]
[Black "leoo2001"]
[Result "1-0"]
[WhiteElo "2817"]
[BlackElo "2700"]
[TimeControl "180+2"]
[EndTime "14:24:35 PST"]
[Termination "MITerryble won by resignation"]

1. d4 {[%clk 0:03:01.9]} 1... Nf6 {[%clk 0:03:00.2]} 2. Nf3 {[%clk 0:03:01.5]}
2... g6 {[%clk 0:03:01.3]} 3. Bg5 {[%clk 0:03:02.1]} 3... Bg7 {[%clk 0:02:59.8]}
4. Nbd2 {[%clk 0:03:03.2]} 4... d5 {[%clk 0:02:54.1]} 5. c3 {[%clk 0:03:04.1]}
5... O-O {[%clk 0:02:52.6]} 6. e3 {[%clk 0:03:05.2]} 6... c6 {[%clk 0:02:40.8]}
7. Be2 {[%clk 0:03:05.5]} 7... Bf5 {[%clk 0:02:36.9]} 8. O-O {[%clk 0:03:05.8]}
8... Nbd7 {[%clk 0:02:36.2]} 9. Qb3 {[%clk 0:03:04.6]} 9... Qb6 {[%clk
0:02:32.1]} 10. c4 {[%clk 0:03:04.7]} 10... Rfc8 {[%clk 0:02:25.9]} 11. Rac1
{[%clk 0:03:00.1]} 11... Qxb3 {[%clk 0:02:24.2]} 12. Nxb3 {[%clk 0:03:01]} 12...
h6 {[%clk 0:02:22.3]} 13. Bh4 {[%clk 0:02:58.3]} 13... g5 {[%clk 0:02:21.5]} 14.
Bg3 {[%clk 0:02:59.5]} 14... Ne4 {[%clk 0:02:22.1]} 15. cxd5 {[%clk 0:02:51.7]}
15... cxd5 {[%clk 0:02:21.9]} 16. Na5 {[%clk 0:02:53.1]} 16... Nxg3 {[%clk
0:02:15.2]} 17. hxg3 {[%clk 0:02:55]} 17... Rab8 {[%clk 0:02:09.1]} 18. Nd2
{[%clk 0:02:39.4]} 18... Nb6 {[%clk 0:02:02.2]} 19. b3 {[%clk 0:02:34.1]} 19...
e5 {[%clk 0:02:00.3]} 20. Nf3 {[%clk 0:02:10.9]} 20... e4 {[%clk 0:01:56.8]} 21.
Ne5 {[%clk 0:02:03.2]} 21... Bxe5 {[%clk 0:01:51.6]} 22. dxe5 {[%clk 0:02:03.9]}
22... Nd7 {[%clk 0:01:53.2]} 23. Rxc8+ {[%clk 0:01:48.6]} 23... Rxc8 {[%clk
0:01:54.6]} 24. Nxb7 {[%clk 0:01:50.2]} 24... Rc2 {[%clk 0:01:55.6]} 25. Bb5
{[%clk 0:01:47.6]} 25... Nxe5 {[%clk 0:01:54.5]} 26. a4 {[%clk 0:01:44.5]} 26...
Kf8 {[%clk 0:01:47.2]} 27. Nd6 {[%clk 0:01:30.5]} 27... Be6 {[%clk 0:01:44.9]}
28. Rd1 {[%clk 0:01:30]} 28... Ke7 {[%clk 0:01:43]} 29. Nb7 {[%clk 0:01:28]}
29... Ng4 {[%clk 0:01:44.5]} 30. Rf1 {[%clk 0:01:26.7]} 30... h5 {[%clk
0:01:38.6]} 31. b4 {[%clk 0:01:12.6]} 31... Ne5 {[%clk 0:01:29.2]} 32. Nc5
{[%clk 0:01:08.5]} 32... Rb2 {[%clk 0:01:29.7]} 33. Rc1 {[%clk 0:00:53.4]} 33...
Rxb4 {[%clk 0:01:28.8]} 34. Kf1 {[%clk 0:00:40.8]} 34... h4 {[%clk 0:01:22.1]}
35. gxh4 {[%clk 0:00:41]} 35... gxh4 {[%clk 0:01:22.6]} 36. Be2 {[%clk
0:00:33.9]} 36... Bf5 {[%clk 0:01:21.1]} 37. a5 {[%clk 0:00:34.5]} 37... Kd6
{[%clk 0:01:18.4]} 38. a6 {[%clk 0:00:31.7]} 38... Bc8 {[%clk 0:01:17.8]} 1-0

[Event "*** Titled Tuesday Blitz"]
[Site "Chess.com"]
[Date "2019.03.05"]
[Round "6"]
[White "Lennis93"]
[Black "DrRiebert"]
[Result "0-1"]
[WhiteElo "2225"]
[BlackElo "2435"]
[TimeControl "180+2"]
[EndTime "14:24:47 PST"]
[Termination "DrRiebert won by checkmate"]

1. e4 {[%clk 0:03:01.9]} 1... c5 {[%clk 0:03:00.9]} 2. Nf3 {[%clk 0:03:02]} 2...
Nc6 {[%clk 0:03:01.7]} 3. c3 {[%clk 0:03:02.3]} 3... Nf6 {[%clk 0:03:02.8]} 4.
e5 {[%clk 0:03:03]} 4... Nd5 {[%clk 0:03:04.4]} 5. Bc4 {[%clk 0:03:03.7]} 5...
Nb6 {[%clk 0:03:05.4]} 6. Bb3 {[%clk 0:03:04.7]} 6... c4 {[%clk 0:03:07.1]} 7.
Bc2 {[%clk 0:03:05.3]} 7... Qc7 {[%clk 0:03:08.9]} 8. O-O {[%clk 0:03:04.7]}
8... g5 {[%clk 0:03:10.6]} 9. d4 {[%clk 0:03:03.8]} 9... cxd3 {[%clk 0:03:08.2]}
10. Bb3 {[%clk 0:02:55.6]} 10... g4 {[%clk 0:02:43.2]} 11. Ng5 {[%clk 0:02:55]}
11... Nxe5 {[%clk 0:02:36.8]} 12. Bf4 {[%clk 0:02:54.6]} 12... d5 {[%clk
0:02:27.1]} 13. Re1 {[%clk 0:02:53]} 13... Bg7 {[%clk 0:02:22.4]} 14. a4 {[%clk
0:02:47.4]} 14... h6 {[%clk 0:02:16.5]} 15. Nxf7 {[%clk 0:02:45.1]} 15... Kxf7
{[%clk 0:02:10.7]} 16. Na3 {[%clk 0:02:45.4]} 16... Nbc4 {[%clk 0:02:05.3]} 17.
Nb5 {[%clk 0:02:40.8]} 17... Qd7 {[%clk 0:01:59.9]} 18. Bxe5 {[%clk 0:02:41.4]}
18... Nxe5 {[%clk 0:01:59.7]} 19. Qd2 {[%clk 0:02:38.3]} 19... Rf8 {[%clk
0:01:50.6]} 20. Nd4 {[%clk 0:02:33.8]} 20... Kg8 {[%clk 0:01:47.1]} 21. a5
{[%clk 0:02:28.4]} 21... e6 {[%clk 0:01:40.6]} 22. Re3 {[%clk 0:02:12.4]} 22...
Nc4 {[%clk 0:01:32.5]} 23. Bxc4 {[%clk 0:02:12.8]} 23... dxc4 {[%clk 0:01:33.7]}
24. Nxe6 {[%clk 0:02:13.4]} 24... Qxe6 {[%clk 0:01:35]} 25. Rxe6 {[%clk
0:02:13.5]} 25... Bxe6 {[%clk 0:01:36.9]} 26. Qe3 {[%clk 0:02:13.1]} 26... Rae8
{[%clk 0:01:32]} 27. Qxa7 {[%clk 0:02:13.5]} 27... Bd5 {[%clk 0:01:22.3]} 28.
Qc5 {[%clk 0:02:13.4]} 28... Rf5 {[%clk 0:01:16.4]} 29. Rf1 {[%clk 0:01:37.3]}
29... d2 {[%clk 0:01:11.1]} 30. f4 {[%clk 0:01:21.5]} 30... gxf3 {[%clk
0:01:05.3]} 31. gxf3 {[%clk 0:01:18.4]} 31... Re1 {[%clk 0:00:56.8]} 32. Qc8+
{[%clk 0:01:18.2]} 32... Rf8 {[%clk 0:00:52.1]} 33. Qd7 {[%clk 0:01:08.1]} 33...
d1=Q {[%clk 0:00:49.8]} 34. Qh3 {[%clk 0:01:07.3]} 34... Rxf1+ {[%clk
0:00:50.1]} 35. Qxf1 {[%clk 0:01:08.1]} 35... Qxf1+ {[%clk 0:00:51.2]} 36. Kxf1
{[%clk 0:01:09.5]} 36... Rxf3+ {[%clk 0:00:53.1]} 37. Ke2 {[%clk 0:01:10.7]}
37... Rh3 {[%clk 0:00:54.4]} 38. Kf2 {[%clk 0:01:11]} 38... Rxh2+ {[%clk
0:00:55.5]} 39. Ke3 {[%clk 0:01:11.7]} 39... Rxb2 {[%clk 0:00:57.4]} 40. a6
{[%clk 0:01:12.7]} 40... bxa6 {[%clk 0:00:59.3]} 41. Kf4 {[%clk 0:01:13]} 41...
Bf7 {[%clk 0:00:59.7]} 42. Ke4 {[%clk 0:01:13.5]} 42... a5 {[%clk 0:01:00.1]}
43. Kf5 {[%clk 0:01:14.5]} 43... a4 {[%clk 0:01:02]} 44. Ke4 {[%clk 0:01:15.7]}
44... a3 {[%clk 0:01:03.6]} 45. Kf3 {[%clk 0:01:16.8]} 45... a2 {[%clk
0:01:05.1]} 46. Kg3 {[%clk 0:01:18.1]} 46... a1=Q {[%clk 0:01:06]} 47. Kf4
{[%clk 0:01:18.7]} 47... Qc1+ {[%clk 0:01:07.2]} 48. Kf3 {[%clk 0:01:19.4]}
48... Qxc3+ {[%clk 0:01:08.1]} 49. Kg4 {[%clk 0:01:20.1]} 49... Rg2+ {[%clk
0:01:09.6]} 50. Kh4 {[%clk 0:01:20.6]} 50... Qg3# {[%clk 0:01:10.7]} 0-1

[Event "*** Titled Tuesday Blitz"]
[Site "Chess.com"]
[Date "2019.03.05"]
[Round "6"]
[White "Genghis_K"]
[Black "vugarrasulov"]
[Result "0-1"]
[WhiteElo "2841"]
[BlackElo "2774"]
[TimeControl "180+2"]
[EndTime "14:24:50 PST"]
[Termination "vugarrasulov won on time"]

1. d4 {[%clk 0:03:01.9]} 1... Nf6 {[%clk 0:03:00.8]} 2. Bf4 {[%clk 0:03:01.1]}
2... g6 {[%clk 0:03:01.7]} 3. Nf3 {[%clk 0:02:56.6]} 3... Bg7 {[%clk 0:03:02.4]}
4. e3 {[%clk 0:02:52.7]} 4... O-O {[%clk 0:03:03.1]} 5. Be2 {[%clk 0:02:52.2]}
5... d6 {[%clk 0:03:04.4]} 6. h3 {[%clk 0:02:53.2]} 6... Nfd7 {[%clk 0:03:04.9]}
7. O-O {[%clk 0:02:52.9]} 7... e5 {[%clk 0:03:06.2]} 8. Bh2 {[%clk 0:02:54.2]}
8... Nc6 {[%clk 0:03:07.4]} 9. c4 {[%clk 0:02:54.1]} 9... exd4 {[%clk
0:02:53.1]} 10. exd4 {[%clk 0:02:53]} 10... Qf6 {[%clk 0:02:48.9]} 11. Nc3
{[%clk 0:02:52.9]} 11... Nxd4 {[%clk 0:02:45]} 12. Nd5 {[%clk 0:02:53.9]} 12...
Nxf3+ {[%clk 0:02:40.2]} 13. Bxf3 {[%clk 0:02:53.8]} 13... Qd8 {[%clk
0:02:42.1]} 14. Re1 {[%clk 0:02:35.5]} 14... Ne5 {[%clk 0:02:42.5]} 15. c5
{[%clk 0:02:36.2]} 15... Be6 {[%clk 0:02:33.6]} 16. Nf4 {[%clk 0:02:10.8]} 16...
Nxf3+ {[%clk 0:02:05.8]} 17. Qxf3 {[%clk 0:02:10.1]} 17... dxc5 {[%clk
0:02:07.4]} 18. Nxe6 {[%clk 0:01:55.9]} 18... fxe6 {[%clk 0:02:09.3]} 19. Qxb7
{[%clk 0:01:56.7]} 19... Rb8 {[%clk 0:02:02.4]} 20. Qe4 {[%clk 0:01:46.1]} 20...
Qd5 {[%clk 0:01:54.3]} 21. Qxe6+ {[%clk 0:00:49.6]} 21... Qxe6 {[%clk
0:01:55.2]} 22. Rxe6 {[%clk 0:00:51.5]} 22... Rxb2 {[%clk 0:01:56.7]} 23. Rf1
{[%clk 0:00:47.1]} 23... Rfxf2 {[%clk 0:01:36.2]} 24. Re8+ {[%clk 0:00:16.3]}
24... Kf7 {[%clk 0:01:36.2]} 25. Rxf2+ {[%clk 0:00:16.9]} 25... Kxe8 {[%clk
0:01:34.2]} 26. Rxb2 {[%clk 0:00:17.2]} 26... Bxb2 {[%clk 0:01:36.1]} 27. Bxc7
{[%clk 0:00:18.1]} 27... Kd7 {[%clk 0:01:36.4]} 28. Bb8 {[%clk 0:00:19.1]} 28...
Kc6 {[%clk 0:01:31.5]} 29. Kf1 {[%clk 0:00:17.7]} 29... a6 {[%clk 0:01:28.5]}
30. Ke2 {[%clk 0:00:19]} 30... Kd5 {[%clk 0:01:29.6]} 31. Kd3 {[%clk 0:00:17.4]}
31... Be5 {[%clk 0:01:28]} 32. Ba7 {[%clk 0:00:14.6]} 32... Bc7 {[%clk
0:01:28.8]} 33. Kc3 {[%clk 0:00:06.2]} 33... h5 {[%clk 0:01:26.5]} 34. Kd3
{[%clk 0:00:05.2]} 34... h4 {[%clk 0:01:26.8]} 35. Kc3 {[%clk 0:00:06.6]} 35...
Kc6 {[%clk 0:01:23.8]} 36. Kc4 {[%clk 0:00:07.1]} 36... Bd6 {[%clk 0:01:25.4]}
37. a4 {[%clk 0:00:06.7]} 37... a5 {[%clk 0:01:25.3]} 0-1

[Event "*** Titled Tuesday Blitz"]
[Site "Chess.com"]
[Date "2019.03.05"]
[Round "6"]
[White "Hieronymus00"]
[Black "Blagorod"]
[Result "1-0"]
[WhiteElo "2206"]
[BlackElo "2122"]
[TimeControl "180+2"]
[EndTime "14:24:56 PST"]
[Termination "Hieronymus00 won by resignation"]

1. e4 {[%clk 0:03:01.9]} 1... e5 {[%clk 0:03:00.3]} 2. Nf3 {[%clk 0:03:02.7]}
2... Nf6 {[%clk 0:03:00.7]} 3. Nxe5 {[%clk 0:03:02.9]} 3... d6 {[%clk
0:03:01.5]} 4. Nf3 {[%clk 0:03:04.1]} 4... Nxe4 {[%clk 0:03:03.1]} 5. Nc3 {[%clk
0:03:05.7]} 5... Nxc3 {[%clk 0:03:04.1]} 6. dxc3 {[%clk 0:03:07.6]} 6... Be7
{[%clk 0:03:05.4]} 7. Bf4 {[%clk 0:03:08.1]} 7... Be6 {[%clk 0:03:04.3]} 8. Qd2
{[%clk 0:03:07.5]} 8... Nc6 {[%clk 0:03:05.4]} 9. O-O-O {[%clk 0:03:05.8]} 9...
Qd7 {[%clk 0:03:06]} 10. Kb1 {[%clk 0:03:03.7]} 10... O-O-O {[%clk 0:03:01.6]}
11. Ng5 {[%clk 0:03:03.3]} 11... Kb8 {[%clk 0:02:53.2]} 12. Bb5 {[%clk
0:02:42.9]} 12... a6 {[%clk 0:02:47]} 13. Nxe6 {[%clk 0:02:39.6]} 13... fxe6
{[%clk 0:02:47.3]} 14. Ba4 {[%clk 0:02:35.8]} 14... e5 {[%clk 0:02:40.2]} 15.
Bg3 {[%clk 0:02:22.7]} 15... b5 {[%clk 0:02:32.3]} 16. Bb3 {[%clk 0:02:23.2]}
16... Na5 {[%clk 0:02:30.7]} 17. Bxe5 {[%clk 0:02:06.1]} 17... Nxb3 {[%clk
0:02:24.3]} 18. axb3 {[%clk 0:02:06.7]} 18... Qf5 {[%clk 0:02:02.7]} 19. Bg3
{[%clk 0:01:55.6]} 19... h5 {[%clk 0:02:03.5]} 20. h4 {[%clk 0:01:46.7]} 20...
g5 {[%clk 0:01:43.9]} 21. Qd5 {[%clk 0:01:33.9]} 21... Qg6 {[%clk 0:01:19.4]}
22. Qc6 {[%clk 0:01:13.4]} 22... gxh4 {[%clk 0:01:14.6]} 23. Bxh4 {[%clk
0:01:13.8]} 23... Bxh4 {[%clk 0:01:03.6]} 24. Rxh4 {[%clk 0:01:14.1]} 24... Qf6
{[%clk 0:00:55.7]} 25. Rhd4 {[%clk 0:01:08.7]} 25... Qxf2 {[%clk 0:00:47.4]} 26.
Qxa6 {[%clk 0:01:08.9]} 26... Qxg2 {[%clk 0:00:34]} 27. Rd5 {[%clk 0:01:06.2]}
27... c5 {[%clk 0:00:30.5]} 28. Qxb5+ {[%clk 0:01:04.5]} 28... Kc7 {[%clk
0:00:27.7]} 29. Qa5+ {[%clk 0:00:58.1]} 29... Kb7 {[%clk 0:00:15.2]} 30. b4
{[%clk 0:00:50.8]} 30... Ra8 {[%clk 0:00:14.5]} 31. Qb5+ {[%clk 0:00:50.3]}
31... Kc7 {[%clk 0:00:13.8]} 32. Rxd6 {[%clk 0:00:49]} 32... Rhd8 {[%clk
0:00:12.3]} 33. Qb6+ {[%clk 0:00:48.8]} 1-0

[Event "*** Titled Tuesday Blitz"]
[Site "Chess.com"]
[Date "2019.03.05"]
[Round "6"]
[White "vpantev"]
[Black "cherryandmint"]
[Result "1-0"]
[WhiteElo "2644"]
[BlackElo "2621"]
[TimeControl "180+2"]
[EndTime "14:25:00 PST"]
[Termination "vpantev won by resignation"]

1. d4 {[%clk 0:03:01.4]} 1... d5 {[%clk 0:03:00.9]} 2. Nf3 {[%clk 0:03:02.5]}
2... Nf6 {[%clk 0:03:01.6]} 3. Bf4 {[%clk 0:03:03.4]} 3... c5 {[%clk 0:02:59.7]}
4. e3 {[%clk 0:03:04.4]} 4... Nc6 {[%clk 0:03:00.5]} 5. Nbd2 {[%clk 0:02:51.3]}
5... Qb6 {[%clk 0:03:00.2]} 6. dxc5 {[%clk 0:02:51.1]} 6... Qxb2 {[%clk
0:03:01]} 7. Nb3 {[%clk 0:02:31.7]} 7... e5 {[%clk 0:02:52.6]} 8. Bg5 {[%clk
0:02:29.2]} 8... Bxc5 {[%clk 0:02:53.2]} 9. Bxf6 {[%clk 0:02:25]} 9... Bb4+
{[%clk 0:02:41.1]} 10. Nfd2 {[%clk 0:02:25.4]} 10... gxf6 {[%clk 0:02:41.3]} 11.
Bd3 {[%clk 0:02:26.2]} 11... e4 {[%clk 0:02:22.1]} 12. Bb5 {[%clk 0:02:13.5]}
12... Rg8 {[%clk 0:02:16.4]} 13. O-O {[%clk 0:01:54.8]} 13... Bh3 {[%clk
0:02:14.3]} 14. g3 {[%clk 0:01:55.6]} 14... Bxf1 {[%clk 0:02:13.3]} 15. Qxf1
{[%clk 0:01:47.5]} 15... Rc8 {[%clk 0:01:56.9]} 16. Rb1 {[%clk 0:01:40]} 16...
Qe5 {[%clk 0:01:54.2]} 17. Qh3 {[%clk 0:01:40.2]} 17... f5 {[%clk 0:01:48]} 18.
Nd4 {[%clk 0:01:38.2]} 18... Bxd2 {[%clk 0:01:47.5]} 19. Nxf5 {[%clk 0:01:34.2]}
19... Kd8 {[%clk 0:01:08.1]} 20. Nh6 {[%clk 0:01:21.1]} 20... Rf8 {[%clk
0:01:03.8]} 21. Bxc6 {[%clk 0:01:19.3]} 21... bxc6 {[%clk 0:01:00.4]} 22. Rb7
{[%clk 0:01:20]} 22... Rc7 {[%clk 0:00:24.3]} 23. Rb8+ {[%clk 0:01:20.2]} 23...
Ke7 {[%clk 0:00:24.2]} 24. Nf5+ {[%clk 0:00:55.1]} 24... Kf6 {[%clk 0:00:22.2]}
25. g4 {[%clk 0:00:33]} 25... Qxf5 {[%clk 0:00:13.7]} 26. gxf5 {[%clk 0:00:34]}
26... Rxb8 {[%clk 0:00:14.5]} 27. Qh4+ {[%clk 0:00:35.4]} 27... Kxf5 {[%clk
0:00:07.1]} 28. Qf4+ {[%clk 0:00:36]} 28... Ke6 {[%clk 0:00:05.9]} 29. Qxc7
{[%clk 0:00:37.4]} 29... Rg8+ {[%clk 0:00:06.4]} 30. Kf1 {[%clk 0:00:38.7]} 1-0

[Event "*** Titled Tuesday Blitz"]
[Site "Chess.com"]
[Date "2019.03.05"]
[Round "6"]
[White "Last7Samurai"]
[Black "Koksik_13"]
[Result "1-0"]
[WhiteElo "2692"]
[BlackElo "2637"]
[TimeControl "180+2"]
[EndTime "14:25:02 PST"]
[Termination "Last7Samurai won by resignation"]

1. e4 {[%clk 0:03:01.9]} 1... e6 {[%clk 0:03:00.2]} 2. d4 {[%clk 0:03:01.6]}
2... d5 {[%clk 0:03:01.2]} 3. Nd2 {[%clk 0:03:02.6]} 3... Nf6 {[%clk 0:03:02]}
4. e5 {[%clk 0:03:03.6]} 4... Nfd7 {[%clk 0:03:03.1]} 5. Bd3 {[%clk 0:03:05.2]}
5... c5 {[%clk 0:03:04.7]} 6. c3 {[%clk 0:03:06.8]} 6... Nc6 {[%clk 0:03:06.3]}
7. Ne2 {[%clk 0:03:07.5]} 7... cxd4 {[%clk 0:03:08]} 8. cxd4 {[%clk 0:03:09.3]}
8... f6 {[%clk 0:03:09.6]} 9. exf6 {[%clk 0:03:11.2]} 9... Qxf6 {[%clk
0:03:11.5]} 10. Nf3 {[%clk 0:03:12.8]} 10... h6 {[%clk 0:03:13.2]} 11. O-O
{[%clk 0:03:13]} 11... Bd6 {[%clk 0:03:14.8]} 12. b3 {[%clk 0:03:10]} 12... O-O
{[%clk 0:03:15.9]} 13. Bb2 {[%clk 0:03:10.3]} 13... Rd8 {[%clk 0:03:16.8]} 14.
Ng3 {[%clk 0:03:10.6]} 14... Nf8 {[%clk 0:03:18.1]} 15. Ne5 {[%clk 0:03:10.1]}
15... Bd7 {[%clk 0:03:00.5]} 16. Nh5 {[%clk 0:03:01.8]} 16... Qe7 {[%clk
0:02:57.5]} 17. Qg4 {[%clk 0:02:55]} 17... Be8 {[%clk 0:02:57.1]} 18. Nf4 {[%clk
0:02:52.2]} 18... Bxe5 {[%clk 0:02:57.2]} 19. dxe5 {[%clk 0:02:52.5]} 19... Rac8
{[%clk 0:02:56.4]} 20. Rac1 {[%clk 0:02:48.8]} 20... Qg5 {[%clk 0:02:56.9]} 21.
Qxg5 {[%clk 0:02:38.3]} 21... hxg5 {[%clk 0:02:58.8]} 22. Nh3 {[%clk 0:02:38]}
22... g4 {[%clk 0:02:56.4]} 23. Ng5 {[%clk 0:02:35.2]} 23... d4 {[%clk
0:02:46.5]} 24. Rfe1 {[%clk 0:02:23.1]} 24... Nb4 {[%clk 0:02:35]} 25. Bc4
{[%clk 0:02:21.9]} 25... Bf7 {[%clk 0:02:21.6]} 26. Ne4 {[%clk 0:02:15.3]} 26...
Nxa2 {[%clk 0:02:02.9]} 27. Ra1 {[%clk 0:02:05.1]} 27... Nc3 {[%clk 0:02:01.4]}
28. Bxc3 {[%clk 0:01:55]} 28... dxc3 {[%clk 0:02:02.4]} 29. Nxc3 {[%clk
0:01:56.4]} 29... a6 {[%clk 0:02:03.6]} 30. Ne4 {[%clk 0:01:57]} 30... b5 {[%clk
0:02:04]} 31. Be2 {[%clk 0:01:57.3]} 31... Ng6 {[%clk 0:01:58.5]} 32. Nd6 {[%clk
0:01:55.4]} 32... Rc3 {[%clk 0:00:55.2]} 33. Nxf7 {[%clk 0:01:56]} 33... Kxf7
{[%clk 0:00:54.9]} 34. Bxg4 {[%clk 0:01:57.4]} 34... Rd5 {[%clk 0:00:44.4]} 35.
Bh5 {[%clk 0:01:48.3]} 35... Rxb3 {[%clk 0:00:36.3]} 36. g3 {[%clk 0:01:29.9]}
36... b4 {[%clk 0:00:19.6]} 37. Rxa6 {[%clk 0:01:28.8]} 37... Rd7 {[%clk
0:00:21.2]} 38. Re4 {[%clk 0:01:25.1]} 38... Rb1+ {[%clk 0:00:15.7]} 39. Kg2
{[%clk 0:01:25.9]} 39... b3 {[%clk 0:00:17.1]} 40. Rf4+ {[%clk 0:01:26.6]} 40...
Ke7 {[%clk 0:00:17.8]} 41. Bxg6 {[%clk 0:01:27.6]} 41... Re1 {[%clk 0:00:15.7]}
42. Rf7+ {[%clk 0:01:26.5]} 42... Kd8 {[%clk 0:00:16]} 43. Ra8+ {[%clk
0:01:27.1]} 43... Kc7 {[%clk 0:00:17.5]} 44. Ra7+ {[%clk 0:01:28.3]} 44... Kc6
{[%clk 0:00:19]} 45. Rfxd7 {[%clk 0:01:28.8]} 1-0

[Event "*** Titled Tuesday Blitz"]
[Site "Chess.com"]
[Date "2019.03.05"]
[Round "6"]
[White "Kampkatten"]
[Black "Off-War"]
[Result "0-1"]
[WhiteElo "2757"]
[BlackElo "2538"]
[TimeControl "180+2"]
[EndTime "14:25:07 PST"]
[Termination "Off-War won on time"]

1. Nf3 {[%clk 0:03:01.9]} 1... d5 {[%clk 0:02:59.9]} 2. g3 {[%clk 0:03:02.8]}
2... Bg4 {[%clk 0:02:53.7]} 3. Bg2 {[%clk 0:03:03.7]} 3... Nd7 {[%clk
0:02:53.1]} 4. c4 {[%clk 0:03:04.4]} 4... e6 {[%clk 0:02:54.5]} 5. cxd5 {[%clk
0:03:00.4]} 5... exd5 {[%clk 0:02:54.4]} 6. O-O {[%clk 0:03:02.3]} 6... c6
{[%clk 0:02:53.5]} 7. d3 {[%clk 0:02:59]} 7... Ngf6 {[%clk 0:02:55]} 8. Qb3
{[%clk 0:02:58.3]} 8... Nc5 {[%clk 0:02:54.9]} 9. Qc2 {[%clk 0:02:58.8]} 9...
Ne6 {[%clk 0:02:52.5]} 10. Nbd2 {[%clk 0:02:57.6]} 10... Be7 {[%clk 0:02:47.1]}
11. a3 {[%clk 0:02:58.7]} 11... O-O {[%clk 0:02:47.9]} 12. b4 {[%clk 0:02:59.8]}
12... Re8 {[%clk 0:02:46.5]} 13. Bb2 {[%clk 0:02:59.3]} 13... h6 {[%clk
0:02:48]} 14. Nb3 {[%clk 0:03:00.3]} 14... Nd7 {[%clk 0:02:46.3]} 15. Nbd4
{[%clk 0:02:55.2]} 15... Bf6 {[%clk 0:02:45.7]} 16. Nxe6 {[%clk 0:02:53]} 16...
Rxe6 {[%clk 0:02:47.6]} 17. h3 {[%clk 0:02:49]} 17... Bf5 {[%clk 0:02:43.4]} 18.
Nd4 {[%clk 0:02:46.7]} 18... Bxd4 {[%clk 0:02:40.1]} 19. Bxd4 {[%clk 0:02:48.6]}
19... Qe7 {[%clk 0:02:37.8]} 20. Rfe1 {[%clk 0:02:38.6]} 20... Bg6 {[%clk
0:02:35.9]} 21. Qb2 {[%clk 0:02:33.5]} 21... f6 {[%clk 0:02:35.4]} 22. Qd2
{[%clk 0:02:26.7]} 22... a6 {[%clk 0:02:36.4]} 23. h4 {[%clk 0:02:23.3]} 23...
Re8 {[%clk 0:02:36.8]} 24. e3 {[%clk 0:02:21]} 24... Ne5 {[%clk 0:02:37.4]} 25.
Bxe5 {[%clk 0:02:15.3]} 25... fxe5 {[%clk 0:02:39.3]} 26. a4 {[%clk 0:02:08.4]}
26... e4 {[%clk 0:02:37.9]} 27. dxe4 {[%clk 0:02:07.7]} 27... Bxe4 {[%clk
0:02:39.6]} 28. b5 {[%clk 0:02:02.9]} 28... Rf6 {[%clk 0:02:32.6]} 29. bxc6
{[%clk 0:01:58.2]} 29... bxc6 {[%clk 0:02:34.5]} 30. Qd4 {[%clk 0:01:54.1]}
30... Qd7 {[%clk 0:02:29.4]} 31. Rad1 {[%clk 0:01:44.4]} 31... Qf5 {[%clk
0:02:28.3]} 32. Rd2 {[%clk 0:01:43.5]} 32... a5 {[%clk 0:02:28.1]} 33. Rc1
{[%clk 0:01:36.3]} 33... Bxg2 {[%clk 0:02:26.4]} 34. Kxg2 {[%clk 0:01:38.2]}
34... Re4 {[%clk 0:02:27.7]} 35. Qb6 {[%clk 0:01:36.6]} 35... Qf3+ {[%clk
0:02:27.4]} 36. Kh2 {[%clk 0:01:28.6]} 36... Rxa4 {[%clk 0:02:21.2]} 37. Qd8+
{[%clk 0:00:51]} 37... Kh7 {[%clk 0:02:18.9]} 38. Rb1 {[%clk 0:00:50.9]} 38...
Rb4 {[%clk 0:02:06.1]} 39. Ra1 {[%clk 0:00:46.7]} 39... a4 {[%clk 0:02:07]} 40.
Qe7 {[%clk 0:00:42.4]} 40... Re4 {[%clk 0:02:07.1]} 41. Qd8 {[%clk 0:00:42.9]}
41... Rg6 {[%clk 0:02:07.3]} 42. Rb1 {[%clk 0:00:41.8]} 42... Rxe3 {[%clk
0:01:32.2]} 43. Rb8 {[%clk 0:00:40.6]} 43... Rxg3 {[%clk 0:01:33.7]} 0-1